[Event "Chessable Masters - Torneo preliminare"]
[White "Bortnyk, Olexandr"]
[Black "Tan, Zhongyi"]
[WhiteFideId "14120828"]
[BlackFideId "8603642"]
[WhiteElo "2643"]
[BlackElo "2517"]
[Result "1/2-1/2"]
[Round "6"]
[TimeControl "600+2"]
[Date "2023.03.13"]
[WhiteClock "0:00:06"]
[BlackClock "0:00:56"]

1. d4 {[%clk 0:10:00]}  d5 {[%clk 0:10:00]} 2. Nc3 {[%clk 0:10:01]}  Nf6 {[%clk 0:09:51]} 3. Bf4 {[%clk 0:10:02]}  c5 {[%clk 0:09:49]} 4. e4 {[%clk 0:10:03]}  dxe4 {[%clk 0:09:48]} 5. dxc5 {[%clk 0:10:01]}  Qa5 {[%clk 0:08:01]} 6. Qd2 {[%clk 0:10:01]}  Bd7 {[%clk 0:07:18]} 7. Nxe4 {[%clk 0:08:54]}  Qxd2+ {[%clk 0:07:16]} 8. Nxd2 {[%clk 0:08:55]}  Nc6 {[%clk 0:07:17]} 9. Ngf3 {[%clk 0:08:51]}  Nd5 {[%clk 0:07:06]} 10. Bg3 {[%clk 0:08:41]}  Ndb4 {[%clk 0:06:41]} 11. O-O-O {[%clk 0:08:39]}  Nxa2+ {[%clk 0:06:35]} 12. Kb1 {[%clk 0:08:40]}  Nab4 {[%clk 0:06:37]} 13. Nc4 {[%clk 0:06:58]}  f6 {[%clk 0:06:06]} 14. c3 {[%clk 0:06:18]}  Bf5+ {[%clk 0:06:06]} 15. Ka1 {[%clk 0:06:20]}  Nc2+ {[%clk 0:05:56]} 16. Ka2 {[%clk 0:06:21]}  b5 {[%clk 0:05:44]} 17. Ne3 {[%clk 0:05:27]}  Nxe3 {[%clk 0:05:43]} 18. Bxb5 {[%clk 0:05:17]}  Rc8 {[%clk 0:04:30]} 19. fxe3 {[%clk 0:05:11]}  a6 {[%clk 0:04:30]} 20. Bxc6+ {[%clk 0:04:18]}  Rxc6 {[%clk 0:04:32]} 21. Nd4 {[%clk 0:04:19]}  Rxc5 {[%clk 0:04:14]} 22. b4 {[%clk 0:04:20]}  Rxc3 {[%clk 0:03:56]} 23. Nxf5 {[%clk 0:04:16]}  g6 {[%clk 0:03:57]} 24. Kb2 {[%clk 0:04:07]}  Rc4 {[%clk 0:03:54]} 25. Kb3 {[%clk 0:04:06]}  Re4 {[%clk 0:03:55]} 26. Nd4 {[%clk 0:04:08]}  Rxe3+ {[%clk 0:03:53]} 27. Kc4 {[%clk 0:03:48]}  e5 {[%clk 0:03:51]} 28. Nc6 {[%clk 0:03:47]}  Re2 {[%clk 0:03:42]} 29. Rhf1 {[%clk 0:03:06]}  Rc2+ {[%clk 0:03:31]} 30. Kd5 {[%clk 0:03:06]}  Be7 {[%clk 0:03:32]} 31. Bf2 {[%clk 0:02:50]}  Kf7 {[%clk 0:03:01]} 32. Bc5 {[%clk 0:02:37]}  Bxc5 {[%clk 0:03:00]} 33. bxc5 {[%clk 0:02:39]}  Re8 {[%clk 0:02:57]} 34. g4 {[%clk 0:02:22]}  e4 {[%clk 0:02:54]} 35. Rb1 {[%clk 0:02:03]}  e3 {[%clk 0:02:10]} 36. Rb7+ {[%clk 0:02:02]}  Kg8 {[%clk 0:02:11]} 37. Rxf6 {[%clk 0:01:45]}  Rd2+ {[%clk 0:01:55]} 38. Kc4 {[%clk 0:01:44]}  Re4+ {[%clk 0:01:31]} 39. Kc3 {[%clk 0:01:21]}  e2 {[%clk 0:00:52]} 40. Ne7+ {[%clk 0:00:46]}  Kg7 {[%clk 0:00:53]} 41. g5 {[%clk 0:00:08]}  Rd7 {[%clk 0:00:52]} 42. Nf5+ {[%clk 0:00:06]}  gxf5 {[%clk 0:00:51]} 43. Rxd7+ {[%clk 0:00:07]}  Kg8 {[%clk 0:00:53]} 44. Rd8+ {[%clk 0:00:06]}  Kg7 {[%clk 0:00:54]} 45. Rd7+ {[%clk 0:00:07]}  Kg8 {[%clk 0:00:55]} 46. Rd8+ {[%clk 0:00:04]}  Kg7 {[%clk 0:00:56]} 47. Rd7+ {[%clk 0:00:06]} 1/2-1/2


[Site "Internet"]

[Event "Chessable Masters - Torneo preliminare"]
[White "Fressinet, Laurent"]
[Black "Makarian, Rudik"]
[WhiteFideId "608742"]
[BlackFideId "44105681"]
[WhiteElo "2689"]
[BlackElo "2462"]
[Result "1/2-1/2"]
[Round "6"]
[TimeControl "600+2"]
[Date "2023.03.13"]
[WhiteClock "0:00:51"]
[BlackClock "0:01:10"]

1. d4 {[%clk 0:10:01]}  Nf6 {[%clk 0:10:01]} 2. Nf3 {[%clk 0:10:00]}  c5 {[%clk 0:10:02]} 3. d5 {[%clk 0:10:00]}  b5 {[%clk 0:10:03]} 4. c3 {[%clk 0:09:58]}  b4 {[%clk 0:09:50]} 5. cxb4 {[%clk 0:09:34]}  cxb4 {[%clk 0:09:50]} 6. a3 {[%clk 0:09:35]}  g6 {[%clk 0:09:29]} 7. axb4 {[%clk 0:09:30]}  Bg7 {[%clk 0:09:30]} 8. Nc3 {[%clk 0:09:25]}  O-O {[%clk 0:09:31]} 9. e4 {[%clk 0:09:15]}  Qb6 {[%clk 0:07:03]} 10. b5 {[%clk 0:09:12]}  Ng4 {[%clk 0:07:04]} 11. Qc2 {[%clk 0:08:58]}  f5 {[%clk 0:07:01]} 12. h3 {[%clk 0:08:32]}  Bxc3+ {[%clk 0:06:31]} 13. bxc3 {[%clk 0:08:26]}  fxe4 {[%clk 0:06:31]} 14. hxg4 {[%clk 0:08:10]}  exf3 {[%clk 0:06:32]} 15. gxf3 {[%clk 0:07:15]}  Rxf3 {[%clk 0:06:00]} 16. Bg2 {[%clk 0:06:39]}  Qf6 {[%clk 0:05:38]} 17. g5 {[%clk 0:05:39]}  Qe5+ {[%clk 0:04:56]} 18. Kf1 {[%clk 0:05:20]}  Rxc3 {[%clk 0:04:37]} 19. Qd2 {[%clk 0:04:49]}  Rb3 {[%clk 0:04:34]} 20. d6 {[%clk 0:04:13]}  Bb7 {[%clk 0:04:03]} 21. Bxb7 {[%clk 0:03:44]}  Qxb5+ {[%clk 0:04:03]} 22. Kg1 {[%clk 0:03:43]}  Qxb7 {[%clk 0:04:05]} 23. dxe7 {[%clk 0:03:43]}  Na6 {[%clk 0:03:04]} 24. Rxa6 {[%clk 0:03:32]}  Re8 {[%clk 0:02:36]} 25. Rxg6+ {[%clk 0:02:53]}  hxg6 {[%clk 0:02:37]} 26. Qd4 {[%clk 0:02:52]}  Qf3 {[%clk 0:01:43]} 27. Qh8+ {[%clk 0:01:53]}  Kf7 {[%clk 0:01:43]} 28. Rh7+ {[%clk 0:01:44]}  Ke6 {[%clk 0:01:44]} 29. Qxe8 {[%clk 0:01:45]}  Qd1+ {[%clk 0:01:24]} 30. Kh2 {[%clk 0:01:38]}  Qd6+ {[%clk 0:01:23]} 31. f4 {[%clk 0:01:37]}  Rb2+ {[%clk 0:01:24]} 32. Bxb2 {[%clk 0:00:52]}  Qd2+ {[%clk 0:01:11]} 33. Kg3 {[%clk 0:00:52]}  Qe3+ {[%clk 0:01:09]} 34. Kg2 {[%clk 0:00:53]}  Qe2+ {[%clk 0:01:10]} 35. Kg3 {[%clk 0:00:51]} 1/2-1/2


[Site "Internet"]

[Event "Chessable Masters - Torneo preliminare"]
[White "Kamsky, Gata"]
[Black "Tari, Aryan"]
[WhiteFideId "2000024"]
[BlackFideId "1510045"]
[WhiteElo "2630"]
[BlackElo "2539"]
[Result "1/2-1/2"]
[Round "6"]
[TimeControl "600+2"]
[Date "2023.03.13"]
[WhiteClock "0:00:20"]
[BlackClock "0:00:08"]

1. d4 {[%clk 0:10:01]}  d5 {[%clk 0:09:58]} 2. Bf4 {[%clk 0:10:01]}  c5 {[%clk 0:09:58]} 3. e3 {[%clk 0:10:02]}  cxd4 {[%clk 0:09:58]} 4. exd4 {[%clk 0:10:02]}  Nc6 {[%clk 0:09:59]} 5. c3 {[%clk 0:10:03]}  f6 {[%clk 0:09:56]} 6. Nf3 {[%clk 0:09:01]}  g5 {[%clk 0:09:50]} 7. Be3 {[%clk 0:08:39]}  Bf5 {[%clk 0:09:41]} 8. h4 {[%clk 0:08:32]}  g4 {[%clk 0:09:34]} 9. Ng1 {[%clk 0:08:22]}  Bh6 {[%clk 0:09:00]} 10. Ne2 {[%clk 0:07:03]}  Bxe3 {[%clk 0:08:57]} 11. fxe3 {[%clk 0:07:02]}  Qd6 {[%clk 0:08:33]} 12. Nf4 {[%clk 0:06:49]}  O-O-O {[%clk 0:08:34]} 13. Bd3 {[%clk 0:06:49]}  Bxd3 {[%clk 0:08:31]} 14. Qxd3 {[%clk 0:06:46]}  e5 {[%clk 0:07:48]} 15. Ne2 {[%clk 0:06:44]}  Nge7 {[%clk 0:07:32]} 16. Rf1 {[%clk 0:06:28]}  Kb8 {[%clk 0:07:08]} 17. Na3 {[%clk 0:06:27]}  a6 {[%clk 0:06:59]} 18. O-O-O {[%clk 0:06:27]}  h5 {[%clk 0:06:31]} 19. g3 {[%clk 0:06:19]}  Qe6 {[%clk 0:04:59]} 20. Nc2 {[%clk 0:05:44]}  Rdf8 {[%clk 0:04:35]} 21. Kb1 {[%clk 0:05:32]}  Nc8 {[%clk 0:04:22]} 22. e4 {[%clk 0:04:58]}  dxe4 {[%clk 0:04:19]} 23. Qxe4 {[%clk 0:04:57]}  Nd6 {[%clk 0:04:17]} 24. Qg2 {[%clk 0:04:13]}  Ne7 {[%clk 0:04:00]} 25. Rfe1 {[%clk 0:03:39]}  Ndf5 {[%clk 0:03:02]} 26. dxe5 {[%clk 0:03:03]}  fxe5 {[%clk 0:03:04]} 27. Nf4 {[%clk 0:03:00]}  Qc6 {[%clk 0:02:59]} 28. Qxc6 {[%clk 0:03:01]}  Nxc6 {[%clk 0:02:55]} 29. Ng6 {[%clk 0:03:01]}  Nxg3 {[%clk 0:02:56]} 30. Nxh8 {[%clk 0:03:02]}  Rxh8 {[%clk 0:02:57]} 31. Ne3 {[%clk 0:02:59]}  Rf8 {[%clk 0:02:47]} 32. Rd7 {[%clk 0:02:58]}  Rf2 {[%clk 0:02:31]} 33. Rh7 {[%clk 0:02:51]}  Rf4 {[%clk 0:00:53]} 34. Rd1 {[%clk 0:02:35]}  Re4 {[%clk 0:00:50]} 35. Nd5 {[%clk 0:02:31]}  Re2 {[%clk 0:00:16]} 36. Nf6 {[%clk 0:02:10]}  Na5 {[%clk 0:00:17]} 37. b3 {[%clk 0:01:49]}  Rh2 {[%clk 0:00:17]} 38. Rd5 {[%clk 0:01:37]}  Ne2 {[%clk 0:00:12]} 39. Rxa5 {[%clk 0:00:23]}  g3 {[%clk 0:00:13]} 40. Rg7 {[%clk 0:00:18]}  g2 {[%clk 0:00:09]} 41. Rxe5 {[%clk 0:00:16]}  Nxc3+ {[%clk 0:00:09]} 42. Kc1 {[%clk 0:00:17]}  Nxa2+ {[%clk 0:00:08]} 43. Kd1 {[%clk 0:00:18]}  Rh1+ {[%clk 0:00:05]} 44. Kd2 {[%clk 0:00:19]}  g1=Q {[%clk 0:00:05]} 45. Rxg1 {[%clk 0:00:19]}  Rxg1 {[%clk 0:00:07]} 46. Rxh5 {[%clk 0:00:20]}  Rg2+ {[%clk 0:00:08]} 1/2-1/2


[Site "Internet"]

[Event "Chessable Masters - Torneo preliminare"]
[White "Svane, Rasmus"]
[Black "Narayanan, Srinath"]
[WhiteFideId "4657101"]
[BlackFideId "5018420"]
[WhiteElo "2621"]
[BlackElo "2482"]
[Result "0-1"]
[Round "6"]
[TimeControl "600+2"]
[Date "2023.03.13"]
[WhiteClock "0:00:04"]
[BlackClock "0:00:15"]

1. d4 {[%clk 0:10:01]}  d5 {[%clk 0:09:59]} 2. c4 {[%clk 0:10:02]}  dxc4 {[%clk 0:10:01]} 3. Nf3 {[%clk 0:10:01]}  Nf6 {[%clk 0:10:02]} 4. e3 {[%clk 0:10:02]}  e6 {[%clk 0:10:03]} 5. Bxc4 {[%clk 0:10:03]}  c5 {[%clk 0:10:05]} 6. O-O {[%clk 0:10:04]}  a6 {[%clk 0:10:06]} 7. Be2 {[%clk 0:10:05]}  b6 {[%clk 0:09:49]} 8. b3 {[%clk 0:09:52]}  Bb7 {[%clk 0:09:47]} 9. Bb2 {[%clk 0:09:53]}  Be7 {[%clk 0:09:33]} 10. Ne5 {[%clk 0:09:39]}  cxd4 {[%clk 0:09:17]} 11. Qxd4 {[%clk 0:08:36]}  Qxd4 {[%clk 0:08:59]} 12. Bxd4 {[%clk 0:08:38]}  Nbd7 {[%clk 0:09:01]} 13. Nxd7 {[%clk 0:08:38]}  Nxd7 {[%clk 0:09:03]} 14. Nd2 {[%clk 0:08:36]}  e5 {[%clk 0:07:06]} 15. Bb2 {[%clk 0:08:28]}  f6 {[%clk 0:06:11]} 16. Rfc1 {[%clk 0:07:40]}  Nc5 {[%clk 0:05:43]} 17. Ba3 {[%clk 0:04:44]}  Ne6 {[%clk 0:04:41]} 18. Bxe7 {[%clk 0:04:41]}  Kxe7 {[%clk 0:04:43]} 19. Nc4 {[%clk 0:04:43]}  b5 {[%clk 0:04:39]} 20. Na5 {[%clk 0:04:44]}  Bd5 {[%clk 0:04:39]} 21. Nc6+ {[%clk 0:04:10]}  Kd6 {[%clk 0:04:02]} 22. Nb4 {[%clk 0:03:58]}  Bb7 {[%clk 0:04:03]} 23. Rd1+ {[%clk 0:03:59]}  Kc5 {[%clk 0:03:39]} 24. a3 {[%clk 0:03:12]}  Rhd8 {[%clk 0:03:15]} 25. Bf3 {[%clk 0:03:10]}  e4 {[%clk 0:03:03]} 26. Bg4 {[%clk 0:03:05]}  Nc7 {[%clk 0:03:04]} 27. Nc2 {[%clk 0:02:57]}  g6 {[%clk 0:02:26]} 28. Nd4 {[%clk 0:02:56]}  Kb6 {[%clk 0:02:27]} 29. Rac1 {[%clk 0:02:54]}  Bd5 {[%clk 0:02:23]} 30. a4 {[%clk 0:02:05]}  f5 {[%clk 0:02:16]} 31. a5+ {[%clk 0:02:05]}  Kb7 {[%clk 0:02:15]} 32. Be2 {[%clk 0:02:03]}  Ne6 {[%clk 0:02:06]} 33. Nxe6 {[%clk 0:00:51]}  Bxe6 {[%clk 0:02:08]} 34. b4 {[%clk 0:00:53]}  Bb3 {[%clk 0:01:44]} 35. Rxd8 {[%clk 0:00:24]}  Rxd8 {[%clk 0:01:46]} 36. Kf1 {[%clk 0:00:24]}  Rd2 {[%clk 0:01:41]} 37. Rb1 {[%clk 0:00:23]}  Ba2 {[%clk 0:00:46]} 38. Rd1 {[%clk 0:00:19]}  Rb2 {[%clk 0:00:47]} 39. h4 {[%clk 0:00:17]}  Bc4 {[%clk 0:00:39]} 40. Bxc4 {[%clk 0:00:14]}  bxc4 {[%clk 0:00:41]} 41. Ke1 {[%clk 0:00:05]}  Kc6 {[%clk 0:00:38]} 42. Rd8 {[%clk 0:00:03]}  Kb5 {[%clk 0:00:26]} 43. Rb8+ {[%clk 0:00:03]}  Ka4 {[%clk 0:00:28]} 44. Rb6 {[%clk 0:00:05]}  c3 {[%clk 0:00:29]} 45. Kd1 {[%clk 0:00:06]}  Kb3 {[%clk 0:00:20]} 46. b5 {[%clk 0:00:07]}  Rb1+ {[%clk 0:00:14]} 47. Ke2 {[%clk 0:00:08]}  Rb2+ {[%clk 0:00:12]} 48. Kd1 {[%clk 0:00:09]}  axb5 {[%clk 0:00:12]} 49. a6 {[%clk 0:00:07]}  b4 {[%clk 0:00:12]} 50. a7 {[%clk 0:00:05]}  Rb1+ {[%clk 0:00:14]} 51. Ke2 {[%clk 0:00:07]}  Ra1 {[%clk 0:00:15]} 52. Rb7 {[%clk 0:00:03]}  c2 {[%clk 0:00:17]} 53. Rc7 {[%clk 0:00:04]}  Rxa7 {[%clk 0:00:15]} 0-1


[Site "Internet"]

[Event "Chessable Masters - Torneo preliminare"]
[White "Bok, Benjamin"]
[Black "Sourath, Biswas"]
[WhiteFideId "1017063"]
[BlackFideId "35091484"]
[WhiteElo "2608"]
[BlackElo "2138"]
[Result "1-0"]
[Round "6"]
[TimeControl "600+2"]
[Date "2023.03.13"]
[WhiteClock "0:00:10"]
[BlackClock "0:00:50"]

1. d4 {[%clk 0:09:56]}  Nf6 {[%clk 0:10:00]} 2. c4 {[%clk 0:09:54]}  g6 {[%clk 0:10:02]} 3. g3 {[%clk 0:09:47]}  Bg7 {[%clk 0:10:03]} 4. Bg2 {[%clk 0:09:48]}  O-O {[%clk 0:10:05]} 5. Nc3 {[%clk 0:09:49]}  d6 {[%clk 0:10:06]} 6. Nf3 {[%clk 0:09:50]}  Nbd7 {[%clk 0:10:07]} 7. O-O {[%clk 0:09:50]}  e5 {[%clk 0:10:09]} 8. e4 {[%clk 0:09:52]}  b6 {[%clk 0:10:08]} 9. Be3 {[%clk 0:09:19]}  Bb7 {[%clk 0:09:39]} 10. d5 {[%clk 0:09:16]}  Nc5 {[%clk 0:09:14]} 11. Ne1 {[%clk 0:09:12]}  a5 {[%clk 0:09:13]} 12. Nd3 {[%clk 0:09:03]}  Bc8 {[%clk 0:08:36]} 13. f3 {[%clk 0:09:00]}  Bd7 {[%clk 0:08:33]} 14. b3 {[%clk 0:09:00]}  Nh5 {[%clk 0:08:23]} 15. Rb1 {[%clk 0:08:34]}  f5 {[%clk 0:08:09]} 16. exf5 {[%clk 0:08:24]}  gxf5 {[%clk 0:08:06]} 17. Nxc5 {[%clk 0:07:02]}  bxc5 {[%clk 0:08:05]} 18. Bd2 {[%clk 0:06:54]}  f4 {[%clk 0:07:34]} 19. g4 {[%clk 0:06:27]}  Nf6 {[%clk 0:07:34]} 20. Qe2 {[%clk 0:06:02]}  Qe8 {[%clk 0:07:19]} 21. Kh1 {[%clk 0:05:06]}  Qg6 {[%clk 0:07:04]} 22. Rg1 {[%clk 0:05:04]}  e4 {[%clk 0:06:50]} 23. Nxe4 {[%clk 0:04:50]}  Nxe4 {[%clk 0:06:50]} 24. fxe4 {[%clk 0:04:51]}  Bd4 {[%clk 0:06:37]} 25. Bf3 {[%clk 0:03:32]}  Bxg1 {[%clk 0:05:41]} 26. Rxg1 {[%clk 0:03:34]}  Qg7 {[%clk 0:05:43]} 27. Bc1 {[%clk 0:03:30]}  Qd4 {[%clk 0:05:40]} 28. Rd1 {[%clk 0:03:18]}  Qc3 {[%clk 0:05:38]} 29. Bb2 {[%clk 0:03:05]}  Qe3 {[%clk 0:05:38]} 30. Qf1 {[%clk 0:02:57]}  Rae8 {[%clk 0:03:28]} 31. Rd3 {[%clk 0:02:57]}  Rxe4 {[%clk 0:03:29]} 32. Rxe3 {[%clk 0:02:55]}  fxe3 {[%clk 0:03:31]} 33. Qd3 {[%clk 0:02:18]}  Ref4 {[%clk 0:03:22]} 34. Be2 {[%clk 0:01:57]}  Re8 {[%clk 0:02:12]} 35. h3 {[%clk 0:01:53]}  Re7 {[%clk 0:01:58]} 36. Kg2 {[%clk 0:01:12]}  Be8 {[%clk 0:01:53]} 37. Kg3 {[%clk 0:01:12]}  Rf2 {[%clk 0:01:54]} 38. Qc3 {[%clk 0:00:54]}  Re5 {[%clk 0:01:50]} 39. Qxa5 {[%clk 0:00:40]}  Re7 {[%clk 0:01:33]} 40. Qc3 {[%clk 0:00:41]}  Re5 {[%clk 0:01:34]} 41. Qc1 {[%clk 0:00:13]}  Re7 {[%clk 0:01:29]} 42. Bf3 {[%clk 0:00:09]}  Bg6 {[%clk 0:01:23]} 43. Bf6 {[%clk 0:00:08]}  Re8 {[%clk 0:01:09]} 44. Bg5 {[%clk 0:00:09]}  Rd2 {[%clk 0:01:11]} 45. Bxe3 {[%clk 0:00:07]}  Rd3 {[%clk 0:01:12]} 46. Kf2 {[%clk 0:00:07]}  Rexe3 {[%clk 0:00:54]} 47. Qxe3 {[%clk 0:00:07]}  Rxe3 {[%clk 0:00:56]} 48. Kxe3 {[%clk 0:00:09]}  Kf7 {[%clk 0:00:50]} 49. Be4 {[%clk 0:00:10]} 1-0


[Site "Internet"]

[Event "Chessable Masters - Torneo preliminare"]
[White "Matamoros Franco, Carlos S."]
[Black "Chirila, Ioan-Cristian"]
[WhiteFideId "3600017"]
[BlackFideId "1211668"]
[WhiteElo "2407"]
[BlackElo "2508"]
[Result "0-1"]
[Round "6"]
[TimeControl "600+2"]
[Date "2023.03.13"]
[WhiteClock "0:05:04"]
[BlackClock "0:05:21"]

1. c4 {[%clk 0:10:00]}  Nf6 {[%clk 0:09:52]} 2. g3 {[%clk 0:10:00]}  e6 {[%clk 0:09:45]} 3. Bg2 {[%clk 0:10:01]}  d5 {[%clk 0:09:47]} 4. Nf3 {[%clk 0:10:02]}  Be7 {[%clk 0:09:43]} 5. O-O {[%clk 0:10:01]}  O-O {[%clk 0:09:34]} 6. b3 {[%clk 0:09:47]}  d4 {[%clk 0:09:31]} 7. e3 {[%clk 0:09:45]}  c5 {[%clk 0:09:27]} 8. d3 {[%clk 0:09:38]}  Nc6 {[%clk 0:09:24]} 9. Na3 {[%clk 0:09:31]}  e5 {[%clk 0:09:16]} 10. Re1 {[%clk 0:09:26]}  dxe3 {[%clk 0:08:12]} 11. Rxe3 {[%clk 0:08:50]}  e4 {[%clk 0:07:23]} 12. Ne1 {[%clk 0:07:40]}  Ng4 {[%clk 0:07:08]} 13. Rxe4 {[%clk 0:07:16]}  f5 {[%clk 0:07:09]} 14. Re2 {[%clk 0:06:19]}  Nd4 {[%clk 0:07:06]} 15. Rb2 {[%clk 0:06:13]}  Bf6 {[%clk 0:05:49]} 16. b4 {[%clk 0:06:09]}  cxb4 {[%clk 0:05:23]} 17. Rxb4 {[%clk 0:05:11]}  Qe7 {[%clk 0:05:23]} 18. Rab1 {[%clk 0:05:04]}  Ne2+ {[%clk 0:05:21]} 0-1


[Site "Internet"]

[Event "Chessable Masters - Torneo preliminare"]
[White "Pap, Gyula"]
[Black "Drygalov, Sergey"]
[WhiteFideId "725323"]
[BlackFideId "24171743"]
[WhiteElo "2563"]
[BlackElo "2461"]
[Result "1-0"]
[Round "6"]
[TimeControl "600+2"]
[Date "2023.03.13"]
[WhiteClock "0:00:10"]
[BlackClock "0:00:08"]

1. d4 {[%clk 0:10:01]}  Nf6 {[%clk 0:10:00]} 2. c3 {[%clk 0:10:02]}  d5 {[%clk 0:09:58]} 3. Nf3 {[%clk 0:10:00]}  c5 {[%clk 0:09:57]} 4. Bf4 {[%clk 0:09:49]}  Nc6 {[%clk 0:09:56]} 5. e3 {[%clk 0:09:38]}  Qb6 {[%clk 0:09:57]} 6. Qc2 {[%clk 0:09:36]}  cxd4 {[%clk 0:09:44]} 7. exd4 {[%clk 0:09:33]}  Bg4 {[%clk 0:08:38]} 8. Nbd2 {[%clk 0:09:30]}  e6 {[%clk 0:08:39]} 9. Bd3 {[%clk 0:09:10]}  Be7 {[%clk 0:08:34]} 10. O-O {[%clk 0:08:59]}  Bh5 {[%clk 0:08:32]} 11. Qb3 {[%clk 0:08:28]}  Bg6 {[%clk 0:08:13]} 12. Qxb6 {[%clk 0:08:05]}  axb6 {[%clk 0:08:15]} 13. Bb5 {[%clk 0:08:06]}  O-O {[%clk 0:08:10]} 14. Rfe1 {[%clk 0:07:57]}  Rfc8 {[%clk 0:08:11]} 15. Nh4 {[%clk 0:07:41]}  Bc2 {[%clk 0:07:57]} 16. Rec1 {[%clk 0:07:32]}  Ne4 {[%clk 0:07:40]} 17. Nhf3 {[%clk 0:06:39]}  Nxd2 {[%clk 0:07:38]} 18. Nxd2 {[%clk 0:06:36]}  Bg6 {[%clk 0:07:39]} 19. Re1 {[%clk 0:06:23]}  Na5 {[%clk 0:07:15]} 20. g4 {[%clk 0:06:03]}  Nc6 {[%clk 0:06:49]} 21. Kg2 {[%clk 0:05:59]}  Ra5 {[%clk 0:05:23]} 22. Bf1 {[%clk 0:05:58]}  Raa8 {[%clk 0:05:23]} 23. Bb5 {[%clk 0:05:56]}  Ra5 {[%clk 0:05:01]} 24. Bf1 {[%clk 0:05:57]}  h6 {[%clk 0:04:53]} 25. Bg3 {[%clk 0:05:28]}  Bf8 {[%clk 0:04:40]} 26. a3 {[%clk 0:05:12]}  Raa8 {[%clk 0:04:39]} 27. Bb5 {[%clk 0:05:09]}  Na5 {[%clk 0:04:23]} 28. Re3 {[%clk 0:04:37]}  Nc4 {[%clk 0:03:56]} 29. Nxc4 {[%clk 0:03:56]}  dxc4 {[%clk 0:03:58]} 30. Bd7 {[%clk 0:03:57]}  Rd8 {[%clk 0:03:51]} 31. Bb5 {[%clk 0:03:57]}  Rac8 {[%clk 0:03:43]} 32. Rae1 {[%clk 0:03:33]}  Bc2 {[%clk 0:03:41]} 33. h4 {[%clk 0:03:21]}  Be7 {[%clk 0:03:24]} 34. Kh3 {[%clk 0:03:03]}  Bf6 {[%clk 0:03:16]} 35. h5 {[%clk 0:01:55]}  Rd5 {[%clk 0:03:13]} 36. a4 {[%clk 0:01:54]}  Bb3 {[%clk 0:02:48]} 37. Bh4 {[%clk 0:01:49]}  Ra8 {[%clk 0:02:18]} 38. Bg3 {[%clk 0:01:38]}  Rc8 {[%clk 0:01:39]} 39. Bh4 {[%clk 0:01:36]}  Ra8 {[%clk 0:01:38]} 40. Bg3 {[%clk 0:01:37]}  Bxa4 {[%clk 0:01:26]} 41. Bxc4 {[%clk 0:01:36]}  Rdd8 {[%clk 0:01:27]} 42. f4 {[%clk 0:01:01]}  b5 {[%clk 0:01:20]} 43. Bf1 {[%clk 0:00:45]}  b4 {[%clk 0:01:21]} 44. Bh4 {[%clk 0:00:45]}  bxc3 {[%clk 0:01:01]} 45. bxc3 {[%clk 0:00:47]}  Bc2 {[%clk 0:01:02]} 46. Bg2 {[%clk 0:00:35]}  Rab8 {[%clk 0:00:48]} 47. R1e2 {[%clk 0:00:31]}  Bh7 {[%clk 0:00:45]} 48. Be4 {[%clk 0:00:11]}  Bxe4 {[%clk 0:00:34]} 49. Rxe4 {[%clk 0:00:13]}  Bxh4 {[%clk 0:00:33]} 50. Kxh4 {[%clk 0:00:14]}  Rbc8 {[%clk 0:00:34]} 51. R2e3 {[%clk 0:00:14]}  Rc7 {[%clk 0:00:33]} 52. f5 {[%clk 0:00:08]}  exf5 {[%clk 0:00:32]} 53. gxf5 {[%clk 0:00:10]}  Kf8 {[%clk 0:00:32]} 54. Rg3 {[%clk 0:00:02]}  Rdc8 {[%clk 0:00:27]} 55. Ree3 {[%clk 0:00:04]}  b5 {[%clk 0:00:23]} 56. Kg4 {[%clk 0:00:05]}  Rc4 {[%clk 0:00:24]} 57. Rd3 {[%clk 0:00:06]}  Rd8 {[%clk 0:00:23]} 58. Kh3 {[%clk 0:00:03]}  Rdc8 {[%clk 0:00:19]} 59. Kg4 {[%clk 0:00:03]}  Ke7 {[%clk 0:00:21]} 60. Kf4 {[%clk 0:00:04]}  Kf6 {[%clk 0:00:22]} 61. Rge3 {[%clk 0:00:04]}  Rd8 {[%clk 0:00:21]} 62. Re5 {[%clk 0:00:02]}  b4 {[%clk 0:00:21]} 63. cxb4 {[%clk 0:00:03]}  Rxb4 {[%clk 0:00:19]} 64. Ke4 {[%clk 0:00:03]}  Rb1 {[%clk 0:00:19]} 65. Rd2 {[%clk 0:00:02]}  Rh1 {[%clk 0:00:17]} 66. Ra5 {[%clk 0:00:03]}  Rh4+ {[%clk 0:00:17]} 67. Ke3 {[%clk 0:00:04]}  Rxh5 {[%clk 0:00:18]} 68. Ra6+ {[%clk 0:00:05]}  Ke7 {[%clk 0:00:14]} 69. f6+ {[%clk 0:00:04]}  gxf6 {[%clk 0:00:15]} 70. Rf2 {[%clk 0:00:05]}  Rh3+ {[%clk 0:00:14]} 71. Ke4 {[%clk 0:00:06]}  Rh4+ {[%clk 0:00:14]} 72. Ke3 {[%clk 0:00:08]}  Rhxd4 {[%clk 0:00:12]} 73. Raxf6 {[%clk 0:00:06]}  Rd3+ {[%clk 0:00:13]} 74. Ke4 {[%clk 0:00:08]}  R8d4+ {[%clk 0:00:11]} 75. Ke5 {[%clk 0:00:08]}  Rd5+ {[%clk 0:00:08]} 76. Ke4 {[%clk 0:00:10]} 1-0


[Site "Internet"]

[Event "Chessable Masters - Torneo preliminare"]
[White "Durarbayli, Vasif"]
[Black "Darini, Pouria"]
[WhiteFideId "13402935"]
[BlackFideId "12502200"]
[WhiteElo "2531"]
[BlackElo "2573"]
[Result "1-0"]
[Round "6"]
[TimeControl "600+2"]
[Date "2023.03.13"]
[WhiteClock "0:00:32"]
[BlackClock "0:00:14"]

1. e4 {[%clk 0:10:01]}  c5 {[%clk 0:10:00]} 2. Nf3 {[%clk 0:10:03]}  Nc6 {[%clk 0:10:02]} 3. Bb5 {[%clk 0:10:03]}  e6 {[%clk 0:10:03]} 4. O-O {[%clk 0:09:59]}  Nge7 {[%clk 0:10:04]} 5. c3 {[%clk 0:09:40]}  a6 {[%clk 0:10:04]} 6. Ba4 {[%clk 0:09:40]}  b5 {[%clk 0:10:02]} 7. Bc2 {[%clk 0:09:40]}  Bb7 {[%clk 0:09:55]} 8. a4 {[%clk 0:09:38]}  b4 {[%clk 0:09:28]} 9. d4 {[%clk 0:09:35]}  cxd4 {[%clk 0:09:15]} 10. cxd4 {[%clk 0:09:24]}  d5 {[%clk 0:09:16]} 11. e5 {[%clk 0:09:24]}  Nf5 {[%clk 0:09:13]} 12. Kh1 {[%clk 0:09:02]}  Qb6 {[%clk 0:08:29]} 13. Be3 {[%clk 0:07:45]}  Be7 {[%clk 0:08:13]} 14. Nbd2 {[%clk 0:07:42]}  O-O {[%clk 0:08:09]} 15. Nb3 {[%clk 0:07:23]}  Nxe3 {[%clk 0:06:53]} 16. fxe3 {[%clk 0:07:22]}  f6 {[%clk 0:06:51]} 17. exf6 {[%clk 0:06:56]}  Rxf6 {[%clk 0:06:52]} 18. Qd3 {[%clk 0:06:53]}  Rh6 {[%clk 0:06:35]} 19. Rac1 {[%clk 0:05:20]}  Rf8 {[%clk 0:06:34]} 20. Bb1 {[%clk 0:05:17]}  Qc7 {[%clk 0:06:23]} 21. Ne5 {[%clk 0:04:20]}  Qd6 {[%clk 0:04:40]} 22. Rxf8+ {[%clk 0:03:43]}  Bxf8 {[%clk 0:04:42]} 23. Ng4 {[%clk 0:02:50]}  Rh4 {[%clk 0:04:43]} 24. h3 {[%clk 0:02:47]}  Qg3 {[%clk 0:03:42]} 25. Nh2 {[%clk 0:01:20]}  e5 {[%clk 0:02:43]} 26. Qf5 {[%clk 0:00:49]}  Nd8 {[%clk 0:00:56]} 27. Rf1 {[%clk 0:00:35]}  Bd6 {[%clk 0:00:14]} 28. Qd7 {[%clk 0:00:32]} 1-0


[Site "Internet"]